[Event "*** Titled Tuesday Blitz"]
[Site "Chess.com"]
[Date "2021.03.09"]
[Round "2"]
[White "horripile"]
[Black "Agoking701"]
[Result "1-0"]
[WhiteElo "2709"]
[BlackElo "2344"]
[TimeControl "180+1"]
[EndTime "10:18:05 PST"]
[Termination "horripile won by resignation"]

1. e4 {[%clk 0:03:00.9]} 1... e5 {[%clk 0:02:50.6]} 2. Nf3 {[%clk 0:02:59.1]}
2... Nc6 {[%clk 0:02:50]} 3. Bb5 {[%clk 0:02:59.4]} 3... Bc5 {[%clk 0:02:45.2]}
4. c3 {[%clk 0:02:59]} 4... a6 {[%clk 0:02:45]} 5. Bxc6 {[%clk 0:02:49.2]} 5...
dxc6 {[%clk 0:02:45.9]} 6. Nxe5 {[%clk 0:02:48.7]} 6... Qe7 {[%clk 0:02:32.8]}
7. d4 {[%clk 0:02:48.4]} 7... Bd6 {[%clk 0:02:33.1]} 8. O-O {[%clk 0:02:42.6]}
8... Bxe5 {[%clk 0:02:29.9]} 9. dxe5 {[%clk 0:02:42.6]} 9... Qxe5 {[%clk
0:02:30.8]} 10. Qd4 {[%clk 0:02:36.8]} 10... Qxd4 {[%clk 0:02:17.8]} 11. cxd4
{[%clk 0:02:37.7]} 11... Nf6 {[%clk 0:02:16.1]} 12. f3 {[%clk 0:02:37.5]} 12...
Be6 {[%clk 0:02:15.6]} 13. Bg5 {[%clk 0:02:34.9]} 13... O-O-O {[%clk 0:02:14.4]}
14. Rd1 {[%clk 0:02:31.5]} 14... Rd7 {[%clk 0:02:05.5]} 15. Nc3 {[%clk
0:02:24.5]} 15... h6 {[%clk 0:01:59.9]} 16. Bxf6 {[%clk 0:02:23.8]} 16... gxf6
{[%clk 0:02:00.8]} 17. Kf2 {[%clk 0:02:23.2]} 17... f5 {[%clk 0:01:54.1]} 18.
Ke3 {[%clk 0:02:21.4]} 18... fxe4 {[%clk 0:01:53.4]} 19. Nxe4 {[%clk 0:02:17.3]}
19... Rhd8 {[%clk 0:01:50]} 20. Rd2 {[%clk 0:02:06.9]} 20... Bd5 {[%clk
0:01:46.1]} 21. Nc3 {[%clk 0:02:03.5]} 21... Be6 {[%clk 0:01:24.7]} 22. Rad1
{[%clk 0:02:01.8]} 22... a5 {[%clk 0:01:21.3]} 23. b3 {[%clk 0:01:54]} 23... b5
{[%clk 0:01:17.2]} 24. Ne4 {[%clk 0:01:53.4]} 24... Bf5 {[%clk 0:01:08.9]} 25.
Nc5 {[%clk 0:01:53.2]} 25... Rd5 {[%clk 0:01:08.4]} 26. g4 {[%clk 0:01:52.4]}
26... Bg6 {[%clk 0:01:08.3]} 27. h4 {[%clk 0:01:51.4]} 27... h5 {[%clk
0:01:03.2]} 28. a3 {[%clk 0:01:50.6]} 28... Rh8 {[%clk 0:00:53.6]} 29. g5 {[%clk
0:01:49.2]} 29... Re8+ {[%clk 0:00:51.5]} 30. Kf2 {[%clk 0:01:48.5]} 30... Rf5
{[%clk 0:00:48.3]} 31. b4 {[%clk 0:01:42.5]} 31... a4 {[%clk 0:00:44.7]} 32. Rc1
{[%clk 0:01:34.4]} 32... Rf4 {[%clk 0:00:38.6]} 33. Kg3 {[%clk 0:01:33.9]} 33...
Rf5 {[%clk 0:00:36.9]} 34. Rc3 {[%clk 0:01:33.7]} 34... Re1 {[%clk 0:00:34.6]}
35. Nd3 {[%clk 0:01:26.3]} 35... Rf1 {[%clk 0:00:27.1]} 36. Ne5 {[%clk
0:01:25.7]} 36... Rg1+ {[%clk 0:00:20.1]} 37. Kh2 {[%clk 0:01:25.1]} 37... Rf1
{[%clk 0:00:16.6]} 38. Kg2 {[%clk 0:01:25.2]} 38... Ra1 {[%clk 0:00:16]} 39.
Nxc6 {[%clk 0:01:25.3]} 39... Rf4 {[%clk 0:00:15.5]} 40. Kg3 {[%clk 0:01:24.1]}
1-0

[Event "*** Titled Tuesday Blitz"]
[Site "Chess.com"]
[Date "2021.03.09"]
[Round "2"]
[White "AurumO"]
[Black "Oglob71"]
[Result "0-1"]
[WhiteElo "1975"]
[BlackElo "2376"]
[TimeControl "180+1"]
[EndTime "10:18:06 PST"]
[Termination "Oglob71 won on time"]

1. e4 {[%clk 0:03:00.9]} 1... c5 {[%clk 0:03:00.9]} 2. c3 {[%clk 0:02:58.2]}
2... e6 {[%clk 0:03:01.8]} 3. d4 {[%clk 0:02:58.1]} 3... d5 {[%clk 0:03:00.4]}
4. exd5 {[%clk 0:02:57.8]} 4... exd5 {[%clk 0:02:58.7]} 5. Bd3 {[%clk
0:02:54.1]} 5... Nc6 {[%clk 0:02:57.6]} 6. Nf3 {[%clk 0:02:48.5]} 6... Bg4
{[%clk 0:02:57.4]} 7. Be3 {[%clk 0:02:46.8]} 7... cxd4 {[%clk 0:02:56.4]} 8.
cxd4 {[%clk 0:02:43.4]} 8... Qb6 {[%clk 0:02:54]} 9. O-O {[%clk 0:02:31.4]} 9...
Qxb2 {[%clk 0:02:51.3]} 10. Nbd2 {[%clk 0:02:29.3]} 10... Qa3 {[%clk 0:02:51.3]}
11. Qe2 {[%clk 0:02:07.8]} 11... Be7 {[%clk 0:02:51.1]} 12. h3 {[%clk
0:02:03.4]} 12... Bh5 {[%clk 0:02:49.8]} 13. Bb5 {[%clk 0:01:47.2]} 13... Nf6
{[%clk 0:02:46.5]} 14. Bg5 {[%clk 0:01:43]} 14... O-O {[%clk 0:02:44.3]} 15. Qe3
{[%clk 0:01:11.5]} 15... Qxe3 {[%clk 0:02:41.9]} 16. Bxe3 {[%clk 0:01:10.5]}
16... Nb4 {[%clk 0:02:39.3]} 17. Ne5 {[%clk 0:00:58.9]} 17... Rac8 {[%clk
0:02:33.6]} 18. Ndf3 {[%clk 0:00:51.1]} 18... Nc2 {[%clk 0:02:22.9]} 19. Rac1
{[%clk 0:00:35.8]} 19... Nxe3 {[%clk 0:02:22.6]} 20. fxe3 {[%clk 0:00:36.7]}
20... a6 {[%clk 0:02:22.3]} 21. Ba4 {[%clk 0:00:34.3]} 21... Ba3 {[%clk
0:02:17.3]} 22. Rxc8 {[%clk 0:00:24.6]} 22... Rxc8 {[%clk 0:02:17.7]} 23. Bb3
{[%clk 0:00:25.2]} 23... Bg6 {[%clk 0:02:10.2]} 24. Nxg6 {[%clk 0:00:20.4]}
24... hxg6 {[%clk 0:02:10]} 25. Ne5 {[%clk 0:00:20.7]} 25... Bd6 {[%clk
0:02:06.5]} 26. Ng4 {[%clk 0:00:15.9]} 26... Nxg4 {[%clk 0:01:59.4]} 27. hxg4
{[%clk 0:00:16.8]} 27... Rd8 {[%clk 0:01:56]} 28. Kh1 {[%clk 0:00:13.6]} 28...
Be7 {[%clk 0:01:52.3]} 29. Re1 {[%clk 0:00:12.8]} 29... Bh4 {[%clk 0:01:50.4]}
30. Re2 {[%clk 0:00:12.8]} 30... Bg3 {[%clk 0:01:50.1]} 31. Kg1 {[%clk
0:00:07.7]} 31... Kf8 {[%clk 0:01:47.5]} 32. Kf1 {[%clk 0:00:06.8]} 32... Ke7
{[%clk 0:01:46.2]} 33. e4 {[%clk 0:00:07.2]} 33... dxe4 {[%clk 0:01:45]} 34.
Rxe4+ {[%clk 0:00:08.1]} 34... Kf8 {[%clk 0:01:44.3]} 35. Ke2 {[%clk 0:00:08.5]}
35... Bh4 {[%clk 0:01:42.6]} 36. Kf3 {[%clk 0:00:08.2]} 36... Bf6 {[%clk
0:01:43]} 37. d5 {[%clk 0:00:07.6]} 37... g5 {[%clk 0:01:42.9]} 38. Re2 {[%clk
0:00:06.9]} 38... g6 {[%clk 0:01:40.8]} 39. Rc2 {[%clk 0:00:05.6]} 39... Rd7
{[%clk 0:01:40]} 40. Rc8+ {[%clk 0:00:05.3]} 40... Ke7 {[%clk 0:01:39]} 41. Rb8
{[%clk 0:00:04.7]} 41... Kd6 {[%clk 0:01:35.9]} 42. Rf8 {[%clk 0:00:03.6]} 42...
Be5 {[%clk 0:01:33.9]} 43. Rg8 {[%clk 0:00:01.8]} 43... Kc5 {[%clk 0:01:33.5]}
44. Rc8+ {[%clk 0:00:01.5]} 44... Kd4 {[%clk 0:01:32.3]} 0-1

[Event "*** Titled Tuesday Blitz"]
[Site "Chess.com"]
[Date "2021.03.09"]
[Round "2"]
[White "Eltaj_Safarli"]
[Black "guillembaches"]
[Result "1-0"]
[WhiteElo "2894"]
[BlackElo "2457"]
[TimeControl "180+1"]
[EndTime "10:18:08 PST"]
[Termination "Eltaj_Safarli won on time"]

1. e4 {[%clk 0:03:00.9]} 1... c5 {[%clk 0:02:59.9]} 2. Nc3 {[%clk 0:03:00.6]}
2... d6 {[%clk 0:02:59.8]} 3. Bb5+ {[%clk 0:03:00.4]} 3... Bd7 {[%clk
0:02:57.5]} 4. Bxd7+ {[%clk 0:02:59.1]} 4... Qxd7 {[%clk 0:02:57.3]} 5. d4
{[%clk 0:02:59.7]} 5... cxd4 {[%clk 0:02:56.8]} 6. Qxd4 {[%clk 0:03:00.6]} 6...
Nc6 {[%clk 0:02:53.6]} 7. Qd3 {[%clk 0:03:01.5]} 7... Nf6 {[%clk 0:02:52]} 8.
Bg5 {[%clk 0:02:58.9]} 8... Qg4 {[%clk 0:02:40.6]} 9. Nf3 {[%clk 0:02:56.6]}
9... Qxg2 {[%clk 0:02:34.9]} 10. Rg1 {[%clk 0:02:54.3]} 10... Qh3 {[%clk
0:02:34.2]} 11. O-O-O {[%clk 0:02:54.7]} 11... Qd7 {[%clk 0:02:18.5]} 12. Nd5
{[%clk 0:02:46.3]} 12... h6 {[%clk 0:02:13.3]} 13. Bxf6 {[%clk 0:02:44.1]} 13...
gxf6 {[%clk 0:02:10.5]} 14. Nd4 {[%clk 0:02:43.7]} 14... Ne5 {[%clk 0:01:49.5]}
15. Qb3 {[%clk 0:02:33.5]} 15... h5 {[%clk 0:01:36]} 16. Nb5 {[%clk 0:02:26.4]}
16... Bh6+ {[%clk 0:01:29.8]} 17. Kb1 {[%clk 0:02:23]} 17... Kf8 {[%clk
0:01:25.8]} 18. f4 {[%clk 0:02:17.8]} 18... Ng4 {[%clk 0:01:21.3]} 19. Rg2
{[%clk 0:02:00.4]} 19... e6 {[%clk 0:00:54.9]} 20. h3 {[%clk 0:01:48.1]} 20...
exd5 {[%clk 0:00:47.7]} 21. hxg4 {[%clk 0:01:42.3]} 21... hxg4 {[%clk
0:00:41.6]} 22. Rxd5 {[%clk 0:01:35]} 22... Bxf4 {[%clk 0:00:40.7]} 23. a3
{[%clk 0:01:33.9]} 23... g3 {[%clk 0:00:32.4]} 24. Rf5 {[%clk 0:01:31.3]} 24...
Be5 {[%clk 0:00:26]} 25. Rxg3 {[%clk 0:01:27]} 25... Bxg3 {[%clk 0:00:19.3]} 26.
Qxg3 {[%clk 0:01:27.9]} 26... Qe6 {[%clk 0:00:17.7]} 27. b3 {[%clk 0:01:14]}
27... Qxe4 {[%clk 0:00:14.1]} 28. Qxd6+ {[%clk 0:01:06.4]} 28... Kg8 {[%clk
0:00:11.2]} 29. Qxf6 {[%clk 0:01:02.4]} 29... Rh1+ {[%clk 0:00:07.1]} 30. Kb2
{[%clk 0:01:02]} 30... Qe6 {[%clk 0:00:01.8]} 31. Rg5+ {[%clk 0:01:02.3]} 31...
Kf8 {[%clk 0:00:02.3]} 32. Qg7+ {[%clk 0:01:02.9]} 32... Ke7 {[%clk 0:00:02.8]}
33. Re5 {[%clk 0:01:03.3]} 1-0

[Event "*** Titled Tuesday Blitz"]
[Site "Chess.com"]
[Date "2021.03.09"]
[Round "2"]
[White "Shubinkirill2003"]
[Black "Isajevsky_Anton"]
[Result "1-0"]
[WhiteElo "2680"]
[BlackElo "2463"]
[TimeControl "180+1"]
[EndTime "10:18:09 PST"]
[Termination "Shubinkirill2003 won by resignation"]

1. e4 {[%clk 0:03:00.9]} 1... c5 {[%clk 0:02:59.6]} 2. Nf3 {[%clk 0:03:00]} 2...
d6 {[%clk 0:02:59.5]} 3. Bb5+ {[%clk 0:02:59.2]} 3... Nd7 {[%clk 0:02:59.1]} 4.
Ba4 {[%clk 0:02:58.7]} 4... Nf6 {[%clk 0:02:57.7]} 5. O-O {[%clk 0:02:58]} 5...
a6 {[%clk 0:02:42.8]} 6. c4 {[%clk 0:02:56.7]} 6... g6 {[%clk 0:02:37.9]} 7. d3
{[%clk 0:02:56.2]} 7... Bg7 {[%clk 0:02:37.8]} 8. h3 {[%clk 0:02:55.9]} 8... O-O
{[%clk 0:02:37.6]} 9. Nc3 {[%clk 0:02:55.8]} 9... b6 {[%clk 0:02:25.9]} 10. Bf4
{[%clk 0:02:54.7]} 10... Bb7 {[%clk 0:02:24.9]} 11. Qd2 {[%clk 0:02:54.3]} 11...
Nb8 {[%clk 0:02:06.8]} 12. Bh6 {[%clk 0:02:48.1]} 12... Nc6 {[%clk 0:02:06.5]}
13. Bxg7 {[%clk 0:02:47.7]} 13... Kxg7 {[%clk 0:02:06.4]} 14. Rab1 {[%clk
0:02:44.9]} 14... Nd7 {[%clk 0:01:42.5]} 15. Bxc6 {[%clk 0:02:37.1]} 15... Bxc6
{[%clk 0:01:41.8]} 16. b4 {[%clk 0:02:38]} 16... a5 {[%clk 0:01:02.8]} 17. bxc5
{[%clk 0:02:32.2]} 17... bxc5 {[%clk 0:01:03.7]} 18. Rb2 {[%clk 0:02:29.1]}
18... a4 {[%clk 0:01:03.1]} 19. Rfb1 {[%clk 0:02:27.2]} 19... Qa5 {[%clk
0:00:51.4]} 20. d4 {[%clk 0:02:16.2]} 20... cxd4 {[%clk 0:00:48.4]} 21. Qxd4+
{[%clk 0:02:17.1]} 21... Kg8 {[%clk 0:00:40.8]} 22. Nd5 {[%clk 0:02:07.2]} 22...
Bxd5 {[%clk 0:00:37.4]} 23. exd5 {[%clk 0:02:08.1]} 23... Rfb8 {[%clk
0:00:31.4]} 24. Qh4 {[%clk 0:01:54.6]} 24... Rxb2 {[%clk 0:00:28.6]} 25. Rxb2
{[%clk 0:01:55.4]} 25... Nf6 {[%clk 0:00:25.3]} 26. Rb7 {[%clk 0:01:50.3]} 26...
Ra7 {[%clk 0:00:22.6]} 27. Rb8+ {[%clk 0:01:47.4]} 27... Kg7 {[%clk 0:00:22.6]}
28. Nd4 {[%clk 0:01:40.2]} 28... Qe1+ {[%clk 0:00:18.9]} 29. Kh2 {[%clk
0:01:40]} 29... Qe5+ {[%clk 0:00:18.8]} 30. g3 {[%clk 0:01:39.5]} 30... Rc7
{[%clk 0:00:17.8]} 31. Nc6 {[%clk 0:01:26.1]} 31... Qe2 {[%clk 0:00:16.2]} 32.
Qf4 {[%clk 0:01:21.2]} 32... Qxa2 {[%clk 0:00:12.5]} 33. Nd4 {[%clk 0:01:08.5]}
33... Qxc4 {[%clk 0:00:10.4]} 34. Nf5+ {[%clk 0:01:07.9]} 1-0

[Event "*** Titled Tuesday Blitz"]
[Site "Chess.com"]
[Date "2021.03.09"]
[Round "2"]
[White "SantoBlue"]
[Black "aa175"]
[Result "0-1"]
[WhiteElo "2843"]
[BlackElo "2556"]
[TimeControl "180+1"]
[EndTime "10:18:11 PST"]
[Termination "aa175 won by resignation"]

1. e4 {[%clk 0:03:00.9]} 1... c5 {[%clk 0:02:59.7]} 2. Nf3 {[%clk 0:03:00.6]}
2... d6 {[%clk 0:03:00.4]} 3. d4 {[%clk 0:03:01]} 3... cxd4 {[%clk 0:03:01.3]}
4. Nxd4 {[%clk 0:03:01.7]} 4... Nf6 {[%clk 0:03:01.9]} 5. Nc3 {[%clk 0:03:01.9]}
5... a6 {[%clk 0:02:59]} 6. a3 {[%clk 0:03:02]} 6... e6 {[%clk 0:02:54]} 7. g4
{[%clk 0:03:01]} 7... h6 {[%clk 0:02:53.7]} 8. h4 {[%clk 0:03:00.1]} 8... b5
{[%clk 0:02:52]} 9. Rg1 {[%clk 0:02:55.2]} 9... g5 {[%clk 0:02:18.9]} 10. hxg5
{[%clk 0:02:53.5]} 10... hxg5 {[%clk 0:02:19.8]} 11. Bxg5 {[%clk 0:02:53.2]}
11... Be7 {[%clk 0:02:19.1]} 12. Be3 {[%clk 0:02:50.3]} 12... Bb7 {[%clk
0:02:16.2]} 13. Bg2 {[%clk 0:02:45.4]} 13... Nbd7 {[%clk 0:02:14.6]} 14. g5
{[%clk 0:02:26.3]} 14... Ng8 {[%clk 0:01:52.3]} 15. g6 {[%clk 0:02:14.7]} 15...
Ne5 {[%clk 0:01:52]} 16. gxf7+ {[%clk 0:02:13.7]} 16... Kxf7 {[%clk 0:01:52.9]}
17. Qe2 {[%clk 0:01:39.5]} 17... Nf6 {[%clk 0:01:43.1]} 18. O-O-O {[%clk
0:01:39.1]} 18... Nc4 {[%clk 0:01:31.7]} 19. e5 {[%clk 0:01:35.5]} 19... dxe5
{[%clk 0:01:06]} 20. Bxb7 {[%clk 0:01:28.5]} 20... exd4 {[%clk 0:00:40.4]} 21.
Bxd4 {[%clk 0:01:25.1]} 21... Bxa3 {[%clk 0:00:22.8]} 22. bxa3 {[%clk 0:01:18]}
22... Qe7 {[%clk 0:00:22.7]} 23. Nb1 {[%clk 0:01:03.2]} 23... Qxb7 {[%clk
0:00:21]} 24. Qg4 {[%clk 0:01:01.4]} 24... Nxg4 {[%clk 0:00:19.5]} 25. Rxg4
{[%clk 0:00:59.8]} 25... e5 {[%clk 0:00:14.8]} 26. Bc3 {[%clk 0:00:59]} 26...
Qf3 {[%clk 0:00:14.3]} 27. Rgg1 {[%clk 0:00:54.4]} 27... Rhg8 {[%clk 0:00:12.7]}
28. Rh1 {[%clk 0:00:53.9]} 28... Rad8 {[%clk 0:00:10]} 29. Rde1 {[%clk
0:00:53.6]} 29... Qf4+ {[%clk 0:00:09.3]} 30. Nd2 {[%clk 0:00:53.4]} 30... Rxd2
{[%clk 0:00:09.5]} 31. Bxd2 {[%clk 0:00:50.2]} 31... Qxd2+ {[%clk 0:00:10.4]}
32. Kb1 {[%clk 0:00:51.1]} 32... Qc3 {[%clk 0:00:10.3]} 0-1

[Event "*** Titled Tuesday Blitz"]
[Site "Chess.com"]
[Date "2021.03.09"]
[Round "2"]
[White "fm_magua"]
[Black "elegant285"]
[Result "1-0"]
[WhiteElo "2578"]
[BlackElo "2288"]
[TimeControl "180+1"]
[EndTime "10:18:12 PST"]
[Termination "fm_magua won by resignation"]

1. e4 {[%clk 0:03:00.9]} 1... c5 {[%clk 0:02:57.2]} 2. Nf3 {[%clk 0:02:59.6]}
2... d6 {[%clk 0:02:57.5]} 3. d4 {[%clk 0:02:59.4]} 3... cxd4 {[%clk 0:02:58.4]}
4. Nxd4 {[%clk 0:02:59.7]} 4... Nf6 {[%clk 0:02:58.2]} 5. Nc3 {[%clk 0:03:00.3]}
5... a6 {[%clk 0:02:58.8]} 6. Bc4 {[%clk 0:03:00.8]} 6... e6 {[%clk 0:02:58.4]}
7. Bb3 {[%clk 0:03:01.5]} 7... Nbd7 {[%clk 0:02:58.2]} 8. O-O {[%clk 0:03:02.1]}
8... Nc5 {[%clk 0:02:58.7]} 9. Bg5 {[%clk 0:03:02.5]} 9... Be7 {[%clk
0:02:56.8]} 10. Qe1 {[%clk 0:03:03.1]} 10... h6 {[%clk 0:02:53.5]} 11. Bh4
{[%clk 0:03:02.8]} 11... g5 {[%clk 0:02:53.6]} 12. Bg3 {[%clk 0:03:02.7]} 12...
e5 {[%clk 0:02:51.7]} 13. Nf5 {[%clk 0:03:01.8]} 13... Bxf5 {[%clk 0:02:42.9]}
14. exf5 {[%clk 0:03:02]} 14... Nxb3 {[%clk 0:02:30.8]} 15. axb3 {[%clk
0:03:01.7]} 15... Qd7 {[%clk 0:02:31.4]} 16. Na4 {[%clk 0:02:55.3]} 16... Qxf5
{[%clk 0:02:21.9]} 17. Nb6 {[%clk 0:02:53.6]} 17... Rd8 {[%clk 0:02:18.5]} 18.
Qe2 {[%clk 0:02:46.3]} 18... O-O {[%clk 0:01:45.8]} 19. Ra5 {[%clk 0:02:44.4]}
19... Qe4 {[%clk 0:01:36.5]} 20. Qd2 {[%clk 0:02:40.1]} 20... Qc6 {[%clk
0:01:20.1]} 21. Nd5 {[%clk 0:02:38.6]} 21... Nxd5 {[%clk 0:01:12.1]} 22. Rxd5
{[%clk 0:02:39.5]} 22... Rc8 {[%clk 0:01:12.6]} 23. c4 {[%clk 0:02:38.4]} 23...
b5 {[%clk 0:01:12.6]} 24. Rc1 {[%clk 0:02:30]} 24... Qb6 {[%clk 0:01:08.7]} 25.
h4 {[%clk 0:02:28.2]} 25... gxh4 {[%clk 0:01:05.1]} 26. Qxh6 {[%clk 0:02:20.5]}
26... hxg3 {[%clk 0:01:03]} 27. Rd3 {[%clk 0:02:19.2]} 27... Qxf2+ {[%clk
0:01:00.6]} 28. Kh1 {[%clk 0:02:19.6]} 28... Bf6 {[%clk 0:00:47.3]} 29. Rf3
{[%clk 0:02:17.6]} 29... Bg7 {[%clk 0:00:46.5]} 30. Qg5 {[%clk 0:02:17.2]} 30...
Qd4 {[%clk 0:00:42.8]} 31. Rxg3 {[%clk 0:01:58]} 31... e4 {[%clk 0:00:42.5]} 32.
Rf1 {[%clk 0:01:56.3]} 32... Rc5 {[%clk 0:00:35.7]} 33. Qh6 {[%clk 0:01:53.3]}
33... Qe5 {[%clk 0:00:31.4]} 34. Rf4 {[%clk 0:01:43]} 34... Qh5+ {[%clk
0:00:26.7]} 35. Qxh5 {[%clk 0:01:42.6]} 35... Rxh5+ {[%clk 0:00:27.6]} 36. Kg1
{[%clk 0:01:43.3]} 36... Re8 {[%clk 0:00:24.4]} 37. Rfg4 {[%clk 0:01:43]} 37...
Rh7 {[%clk 0:00:25]} 38. Kf2 {[%clk 0:01:43.4]} 38... Kf8 {[%clk 0:00:25.1]} 39.
Ke3 {[%clk 0:01:43.3]} 39... Bh6+ {[%clk 0:00:25.5]} 40. Ke2 {[%clk 0:01:42.8]}
40... e3 {[%clk 0:00:26]} 41. cxb5 {[%clk 0:01:40.5]} 41... axb5 {[%clk
0:00:25.7]} 42. Rb4 {[%clk 0:01:40.4]} 42... Rc8 {[%clk 0:00:23.6]} 43. Rxb5
{[%clk 0:01:39.1]} 43... Rc2+ {[%clk 0:00:24.1]} 44. Kd3 {[%clk 0:01:37.8]}
44... e2 {[%clk 0:00:20.4]} 45. Rb8+ {[%clk 0:01:37.9]} 45... Ke7 {[%clk
0:00:20.6]} 46. Rb7+ {[%clk 0:01:38.3]} 46... Ke6 {[%clk 0:00:19.7]} 47. Rg8
{[%clk 0:01:32.9]} 47... Rd2+ {[%clk 0:00:18.5]} 48. Kc3 {[%clk 0:01:32.7]}
48... Bg7+ {[%clk 0:00:16]} 49. Kxd2 {[%clk 0:01:32.2]} 49... Rh1 {[%clk
0:00:14.7]} 50. Kxe2 {[%clk 0:01:31.9]} 1-0

[Event "*** Titled Tuesday Blitz"]
[Site "Chess.com"]
[Date "2021.03.09"]
[Round "2"]
[White "LawrenceTrent"]
[Black "sergiochess83"]
[Result "0-1"]
[WhiteElo "2557"]
[BlackElo "2905"]
[TimeControl "180+1"]
[EndTime "10:18:13 PST"]
[Termination "sergiochess83 won by checkmate"]

1. d4 {[%clk 0:03:00.9]} 1... Nf6 {[%clk 0:02:59.1]} 2. Bg5 {[%clk 0:03:00]}
2... d5 {[%clk 0:02:54.4]} 3. Nd2 {[%clk 0:02:59.4]} 3... e6 {[%clk 0:02:42.4]}
4. e4 {[%clk 0:02:58.6]} 4... h6 {[%clk 0:02:42.2]} 5. Bxf6 {[%clk 0:02:57.3]}
5... Qxf6 {[%clk 0:02:42]} 6. e5 {[%clk 0:02:58.2]} 6... Qd8 {[%clk 0:02:41.6]}
7. Ngf3 {[%clk 0:02:57.4]} 7... c5 {[%clk 0:02:41.7]} 8. dxc5 {[%clk 0:02:58]}
8... Bxc5 {[%clk 0:02:40.3]} 9. Bd3 {[%clk 0:02:57.9]} 9... O-O {[%clk
0:02:32.9]} 10. O-O {[%clk 0:02:57.3]} 10... Nc6 {[%clk 0:02:33.3]} 11. c3
{[%clk 0:02:54.7]} 11... Bd7 {[%clk 0:02:27.6]} 12. Nb3 {[%clk 0:02:52.6]} 12...
Bb6 {[%clk 0:02:24.1]} 13. Qe2 {[%clk 0:02:50.9]} 13... f5 {[%clk 0:02:11]} 14.
exf6 {[%clk 0:02:47.9]} 14... Qxf6 {[%clk 0:02:10.3]} 15. Rae1 {[%clk
0:02:47.8]} 15... Rae8 {[%clk 0:02:09.5]} 16. c4 {[%clk 0:02:42.3]} 16... g5
{[%clk 0:01:45.8]} 17. h3 {[%clk 0:02:39.9]} 17... a5 {[%clk 0:01:33.5]} 18. a4
{[%clk 0:01:54.3]} 18... Nb4 {[%clk 0:01:26.3]} 19. Bb1 {[%clk 0:01:41.8]} 19...
Bxa4 {[%clk 0:01:24.5]} 20. Nbd2 {[%clk 0:01:41.9]} 20... Bc7 {[%clk 0:01:15.9]}
21. b3 {[%clk 0:01:38.1]} 21... Bc6 {[%clk 0:01:14.6]} 22. Qe3 {[%clk 0:01:34]}
22... Qf4 {[%clk 0:00:40.5]} 23. g3 {[%clk 0:01:18.6]} 23... Qxe3 {[%clk
0:00:40.1]} 24. Rxe3 {[%clk 0:01:15.6]} 24... dxc4 {[%clk 0:00:35.2]} 25. bxc4
{[%clk 0:01:11.8]} 25... Bb6 {[%clk 0:00:32.6]} 26. Rc3 {[%clk 0:01:09]} 26...
Rd8 {[%clk 0:00:32.1]} 27. Ne4 {[%clk 0:01:08.2]} 27... Kg7 {[%clk 0:00:21.9]}
28. c5 {[%clk 0:01:07]} 28... Bc7 {[%clk 0:00:21.5]} 29. h4 {[%clk 0:01:06]}
29... gxh4 {[%clk 0:00:18.8]} 30. Nxh4 {[%clk 0:01:06]} 30... Rd4 {[%clk
0:00:18.7]} 31. Re1 {[%clk 0:01:05.4]} 31... Rfd8 {[%clk 0:00:14.7]} 32. Ng2
{[%clk 0:01:05.4]} 32... Rd1 {[%clk 0:00:14.5]} 33. Rc1 {[%clk 0:01:05.4]} 33...
Rxc1 {[%clk 0:00:14.4]} 34. Rxc1 {[%clk 0:01:05.8]} 34... Nd3 {[%clk 0:00:14.7]}
35. Rc4 {[%clk 0:01:04.5]} 35... Ne5 {[%clk 0:00:12.7]} 36. Rc3 {[%clk
0:01:03.7]} 36... Rd1+ {[%clk 0:00:12.1]} 37. Kh2 {[%clk 0:01:02]} 37... Bxe4
{[%clk 0:00:10.9]} 38. Nf4 {[%clk 0:01:02.9]} 38... Rh1# {[%clk 0:00:09.8]} 0-1

[Event "*** Titled Tuesday Blitz"]
[Site "Chess.com"]
[Date "2021.03.09"]
[Round "2"]
[White "Love_craft"]
[Black "BilodeauA"]
[Result "0-1"]
[WhiteElo "2555"]
[BlackElo "2904"]
[TimeControl "180+1"]
[EndTime "10:18:13 PST"]
[Termination "BilodeauA won on time"]

1. d4 {[%clk 0:03:00.9]} 1... d5 {[%clk 0:03:00]} 2. c4 {[%clk 0:03:00.5]} 2...
dxc4 {[%clk 0:03:00.9]} 3. Nf3 {[%clk 0:02:59.7]} 3... a6 {[%clk 0:03:01.1]} 4.
e3 {[%clk 0:02:52.8]} 4... Bg4 {[%clk 0:03:00.1]} 5. Bxc4 {[%clk 0:02:51.1]}
5... e6 {[%clk 0:03:00.5]} 6. h3 {[%clk 0:02:46.9]} 6... Bh5 {[%clk 0:03:00.3]}
7. O-O {[%clk 0:02:46.6]} 7... Nf6 {[%clk 0:03:00.3]} 8. Nbd2 {[%clk 0:02:43.5]}
8... Nc6 {[%clk 0:02:59.9]} 9. a3 {[%clk 0:02:42.3]} 9... Bd6 {[%clk 0:02:59.1]}
10. Qc2 {[%clk 0:02:39.5]} 10... O-O {[%clk 0:02:57.5]} 11. b4 {[%clk
0:01:59.4]} 11... e5 {[%clk 0:02:57.2]} 12. Bb2 {[%clk 0:01:55.3]} 12... Qe7
{[%clk 0:02:56.4]} 13. d5 {[%clk 0:01:38.1]} 13... Nb8 {[%clk 0:02:53.7]} 14.
Ng5 {[%clk 0:01:10.2]} 14... h6 {[%clk 0:02:36]} 15. Nge4 {[%clk 0:01:09.3]}
15... Nxe4 {[%clk 0:02:32.9]} 16. Nxe4 {[%clk 0:01:10.2]} 16... Nd7 {[%clk
0:02:31.3]} 17. Ng3 {[%clk 0:00:57.8]} 17... Bg6 {[%clk 0:02:29.4]} 18. Bd3
{[%clk 0:00:57.8]} 18... Bxd3 {[%clk 0:02:23.5]} 19. Qxd3 {[%clk 0:00:58.7]}
19... Rae8 {[%clk 0:02:12.8]} 20. e4 {[%clk 0:00:54.6]} 20... g6 {[%clk
0:02:09.7]} 21. Qe3 {[%clk 0:00:40.4]} 21... Kh7 {[%clk 0:01:57.5]} 22. Bc1
{[%clk 0:00:36.1]} 22... Qh4 {[%clk 0:01:57.3]} 23. Qd3 {[%clk 0:00:24.9]} 23...
Nf6 {[%clk 0:01:45]} 24. Bd2 {[%clk 0:00:18.4]} 24... Nh5 {[%clk 0:01:44.6]} 25.
Nxh5 {[%clk 0:00:15.7]} 25... Qxh5 {[%clk 0:01:45.5]} 26. g4 {[%clk 0:00:11.4]}
26... Qh4 {[%clk 0:01:44.6]} 27. Qg3 {[%clk 0:00:09.3]} 27... Qf6 {[%clk
0:01:33.7]} 28. a4 {[%clk 0:00:08.3]} 28... Qg7 {[%clk 0:01:30.7]} 29. b5 {[%clk
0:00:04.3]} 29... f5 {[%clk 0:01:15.8]} 30. gxf5 {[%clk 0:00:04.4]} 30... gxf5
{[%clk 0:01:16.3]} 31. Qxg7+ {[%clk 0:00:05.1]} 31... Kxg7 {[%clk 0:01:17.2]}
32. f3 {[%clk 0:00:03.7]} 32... Kf6 {[%clk 0:01:17.7]} 33. Be3 {[%clk
0:00:02.7]} 33... Rg8+ {[%clk 0:01:15.4]} 34. Kf2 {[%clk 0:00:02.4]} 34... f4
{[%clk 0:01:16.1]} 35. Bd2 {[%clk 0:00:02.1]} 35... Bc5+ {[%clk 0:01:15.2]} 36.
Ke1 {[%clk 0:00:01.8]} 36... Rg2 {[%clk 0:01:14.6]} 37. Rc1 {[%clk 0:00:01]}
37... b6 {[%clk 0:01:10.4]} 0-1